{"text_format":"1","workbook":"xlsx","n_sheets":3,"sheets":["ÖnDeğerlendirme","Bölümler","Anabilimdalı"],"not_rendered":{"charts":0,"images":0,"macros":1,"external_links":0,"defined_names":42,"comments":1,"pivot_tables":0},"unopened":[],"bounds":{"document_bytes":16777216,"sheet_cells":100000,"rows_first":2000,"rows_last":500,"rows_between":2000,"halvings":0,"cell_chars":16384,"cell_head_chars":4096},"cells_cut":0,"cells_raw":0,"read":"whole","date_system":"1900"}

{"sheet":"ÖnDeğerlendirme","index":0,"n_rows":40,"n_cols":12,"rows_kept":40,"cut":false,"hidden":false,"merged":[[8,8,9,8],[7,0,7,1],[7,3,7,7],[8,0,9,0],[8,1,9,1],[8,2,9,2],[8,4,9,4],[8,7,9,7],[4,0,4,1],[4,3,4,7],[5,0,5,1],[5,3,5,7],[6,0,6,1],[6,3,6,7],[3,0,3,1],[3,3,3,7],[1,0,1,8],[0,0,0,8],[2,0,2,1],[2,3,2,7]]}
["Gebze Teknik Üniversitesi "]
[{"$f":"I3&\" \"&I4&\" \"&I5&\" \"&I6&\" \"&I7","v":"Temel Bilimler Fakültesi Matematik Bölümü Matematiğin Temelleri ve Lojik Anabilim Dalı Araştırma Görevlisi Alımı Ön Değerlendirme Formu"},null,null,null,null,null,null,null,null,null,null,"Lütfen listeden seçiniz"]
["Birimi              ",null,":","Temel Bilimler Fakültesi",null,null,null,null,{"$f":"IF(ISNONTEXT(D3)=TRUE,\"\",D3)","v":"Temel Bilimler Fakültesi"},{"$f":"SUBSTITUTE(D3,\" \",\"_\")","v":"Temel_Bilimler_Fakültesi"},"Giriş Sınavına Girebilir","Araştırma Görevlisi"]
["Bölümü          ",null,":","Matematik Bölümü",null,null,null,null,{"$f":"IF(ISNONTEXT(D4)=TRUE,\"\",D4)","v":"Matematik Bölümü"},{"$f":"SUBSTITUTE(D4,\" \",\"_\")","v":"Matematik_Bölümü"},"Sıralamaya Giremedi","Öğretim Görevlisi"]
["Anabilim Dalı ",null,":","Matematiğin Temelleri ve Lojik Anabilim Dalı",null,null,null,null,{"$f":"IF(ISNONTEXT(D5)=TRUE,\"\",D5)","v":"Matematiğin Temelleri ve Lojik Anabilim Dalı"},null,"Geçersiz Başvuru"]
["Kadro Ünvanı",null,":","Araştırma Görevlisi",null,null,null,null,{"$f":"IF(ISNONTEXT(D6)=TRUE,\"\",D6)","v":"Araştırma Görevlisi"}]
["İlan Numarası",null,":",20201008,null,null,null,null,"Alımı Ön Değerlendirme Formu"]
["Kadro Adedi",null,":",1,null,null,null,null,null,"Biyomühendislik_Bölümü"]
["Sıra","Adı Soyadı","Ales Puanı","Ales Puanı\n(A)","Dil Puanı","Dil Puanı\n( B)","Değerlendirme Notu","Sonuç","Açıklama"]
[null,null,"Mezuniyet",{"$f":"IF(D6=\"Araştırma Görevlisi\", 0.6,0.4)","v":0.6},null,{"$f":"IF(D6=\"Araştırma Görevlisi\", 0.4,0.6)","v":0.4},"A+B"]
[1,"AHMET TUGAY KUZU",87.326120000000003,{"$f":"ROUND((C11*$D$10),4)","v":52.395699999999998},88.75,{"$f":"ROUND((E11*$F$10),4)","v":35.5},{"$f":"D11+F11","v":87.895700000000005},"Giriş Sınavına Girebilir"]
[2,"SELİN SARI",89.002189999999999,53.401299999999999,82.5,33,86.401299999999992,"Giriş Sınavına Girebilir"]
[3,"MELİKE MUNTAŞ",83.233649999999997,49.940199999999997,82.5,33,82.940200000000004,"Giriş Sınavına Girebilir"]
[4,"ASLIHAN GÜR",76.005430000000004,45.603299999999997,77.5,31,76.60329999999999,"Giriş Sınavına Girebilir"]
[5,"MERT CAN",72.403670000000005,43.4422,66.25,26.5,69.9422,"Giriş Sınavına Girebilir"]
[6,null,null,0,null,0,0]
[7,null,null,0,null,0,0]
[8,null,null,0,null,0,0]
[9,null,null,0,null,0,0]
[10,null,null,0,null,0,0]
[11,null,null,0,null,0,0]
[12,null,null,0,null,0,0]
[13,null,null,0,null,0,0]
[14,null,null,0,null,0,0]
[15,null,null,0,null,0,0]
[16,null,null,0,null,0,0]
[17,null,null,0,null,0,0]
[18,null,null,0,null,0,0]
[19,null,null,0,null,0,0]
[20,null,null,0,null,0,0]
[21,null,null,0,0,0,0]
[22,null,null,0,null,0,0]
[23,null,null,0,null,0,0]
[24,null,null,0,null,0,0]
[25,null,null,0,null,0,0]
[26,null,null,0,null,0,0]
[27,null,null,0,null,0,0]
[28,null,null,0,null,0,0]
[29,null,null,0,null,0,0]
[30,null,null,0,null,0,0]

{"sheet":"Bölümler","index":1,"n_rows":5,"n_cols":1,"rows_kept":5,"cut":false,"hidden":true,"merged":[]}
["Temel Bilimler Fakültesi"]
["Fizik Bölümü"]
["Kimya Bölümü"]
["Matematik Bölümü"]
["Moleküler Biyoloji ve Genetik Bölümü"]

{"sheet":"Anabilimdalı","index":2,"n_rows":7,"n_cols":4,"rows_kept":7,"cut":false,"hidden":true,"merged":[]}
["Fizik Bölümü","Kimya Bölümü","Matematik Bölümü","Moleküler Biyoloji ve Genetik Bölümü"]
["Atom ve Molekül Fiziği Anabilim Dalı","Analitik Kimya Anabilim Dalı","Analiz ve Fonksiyonlar Teorisi Anabilim Dalı","Genel Biyoloji Anabilim Dalı"]
["Genel Fizik Anabilim Dalı","Anorganik Kimya Anabilim Dalı","Cebir ve Sayılar Teorisi Anabilim Dalı","Genetik Anabilim Dalı"]
["Katıhal Fiziği Anabilim Dalı","Biyokimya Anabilim Dalı","Geometri Anabilim Dalı","Hücre Biyolojisi"]
["Medikal Fizik Anabilim Dalı","Fizikokimya Anabilim Dalı","Matematiğin Temelleri ve Lojik Anabilim Dalı","Moleküler Biyoloji Anabilim Dalı"]
["Nükleer Fizik Anabilim Dalı","Organik Kimya Anabilim Dalı","Topoloji Anabilim Dalı"]
[null,null,"Uygulamalı Matematik Anabilim Dalı"]